bitfinex/quotes_BTCUSD_20241202
["timestamp","ask_amount","ask_price","bid_price","bid_amount"]
[1733160607316,1.71895621,95513.0,95512.0,1.375105]
[1733160607539,1.71895621,95513.0,95512.0,1.364215]
[1733160607768,1.71895621,95513.0,95512.0,1.15044687]
[1733160607769,1.76904764,95513.0,95512.0,1.15044687]
[1733160608006,2.81203529,95513.0,95512.0,1.10856687]
[1733160608269,2.81203529,95513.0,95512.0,1.08762687]
[1733160608809,1.57936664,95513.0,95512.0,0.97792687]
[1733160609267,1.74007464,95513.0,95512.0,0.97792687]
[1733160609491,1.82078064,95513.0,95512.0,0.97738487]
[1733160609716,1.42936664,95513.0,95512.0,0.93550487]
[1733160609967,1.62136664,95513.0,95512.0,0.89362487]
[1733160610194,1.62136664,95513.0,95512.0,0.87268487]
[1733160610421,2.12030127,95513.0,95512.0,0.87268487]
[1733160610894,2.35142829,95513.0,95512.0,0.76798487]
[1733160611146,1.5476598,95476.0,95475.0,0.05154665]
[1733160611397,4.11825601,95476.0,95475.0,0.05154665]
[1733160611636,4.02110101,95476.0,95475.0,0.05154665]
[1733160611855,4.02110101,95476.0,95456.0,0.0008645]
[1733160611856,1.7206818,95466.0,95465.0,0.14679265]
[1733160612075,1.82352701,95466.0,95465.0,0.14679265]
[1733160612520,1.82370286,95466.0,95465.0,0.14679265]
[1733160612742,1.62370286,95466.0,95465.0,0.04203265]
[1733160613713,1.79270286,95466.0,95465.0,0.04203265]
[1733160614149,1.79270286,95466.0,95433.0,0.0002784]
[1733160614150,1.2881838,95456.0,95455.0,0.13814115]
[1733160614358,1.96402901,95456.0,95455.0,0.13814115]
[1733160614560,2.07382901,95456.0,95455.0,0.13814115]
[1733160615405,2.00602901,95456.0,95455.0,0.13814115]
[1733160615620,1.4611838,95456.0,95455.0,0.13814115]
[1733160615846,0.9111838,95456.0,95455.0,0.13814115]
[1733160616058,0.3381838,95456.0,95455.0,0.13814115]
[1733160616270,0.12465208,95456.0,95455.0,0.13814115]
[1733160616481,0.2095,95465.0,95455.0,0.13814115]
[1733160616482,0.2095,95465.0,95455.0,0.24098636]
[1733160616718,0.209515,95459.0,95456.0,0.10284521]
[1733160618024,0.209515,95459.0,95457.0,0.00354111]
[1733160618249,0.2,95477.0,95459.0,0.00288]
[1733160618476,0.2,95477.0,95455.0,0.13814115]
[1733160618477,0.2,95461.0,95460.0,0.10284521]
[1733160618692,0.3097252,95461.0,95460.0,0.10605551]
[1733160619830,0.3097252,95461.0,95460.0,0.10284521]
[1733160620898,0.28631467,95461.0,95460.0,0.10290417]
[1733160621117,0.2607094,95461.0,95460.0,0.10604042]
[1733160624071,0.4702184,95461.0,95460.0,0.10604042]
[1733160624286,0.2607094,95461.0,95460.0,0.10604042]
[1733160624494,0.1326094,95461.0,95460.0,0.10604042]
[1733160625534,0.0228842,95461.0,95460.0,0.10604042]
[1733160625748,0.1326094,95461.0,95460.0,0.10604042]
[1733160627066,0.1326094,95461.0,95460.0,0.00319521]
[1733160627495,0.0228842,95458.0,95457.0,0.0005904]
[1733160627728,0.0228842,95458.0,95444.0,100.0]
[1733160627729,0.209528,95453.0,95445.0,0.10284521]
[1733160627965,0.209528,95453.0,95444.0,99.12219428]
[1733160627966,0.0228842,95447.0,95446.0,0.10284521]
[1733160628184,0.0228842,95447.0,95446.0,0.10563736]
[1733160629221,0.1326094,95447.0,95446.0,0.10563736]
[1733160629436,0.09677693,95453.0,95446.0,0.10563736]
[1733160629643,0.0005904,95458.0,95453.0,0.023]
[1733160629869,0.09677693,95474.0,95458.0,0.023]
[1733160630066,0.09677693,95481.0,95473.0,0.10284521]
[1733160630306,0.00017712,95498.0,95459.0,0.048]
[1733160630307,0.09677693,95485.0,95480.0,0.10284521]
[1733160630529,0.09677693,95485.0,95481.0,0.18004521]
[1733160630964,0.09677693,95485.0,95482.0,5.292e-05]
[1733160631179,0.08673291,95494.0,95484.0,0.10284521]
[1733160631390,0.08673291,95490.0,95486.0,0.10284521]
[1733160631851,0.08673291,95497.0,95489.0,0.10284521]
[1733160632066,0.29616291,95497.0,95493.0,0.10284521]
[1733160632289,0.08673291,95497.0,95493.0,0.10284521]
[1733160632500,0.209433,95496.0,95493.0,0.10284521]
[1733160632912,0.08673291,95497.0,95493.0,0.10284521]
[1733160633542,0.00017712,95498.0,95481.0,0.0772]
[1733160633543,0.00017712,95498.0,95496.0,0.10284521]
[1733160633753,0.08673291,95507.0,95497.0,0.12584521]
[1733160633965,0.0228842,95505.0,95503.0,0.10284521]
[1733160634289,0.08673291,95507.0,95503.0,0.10284521]
[1733160634386,0.08673291,95507.0,95504.0,0.00303767]
[1733160634594,0.08673291,95511.0,95506.0,0.10284521]
[1733160634816,0.08673291,95511.0,95504.0,0.00308456]
[1733160634817,0.08673291,95511.0,95507.0,0.10284521]
[1733160635070,0.08673291,95514.0,95507.0,0.10289128]
[1733160635280,0.209395,95513.0,95510.0,0.10284521]
[1733160635494,0.0228842,95511.0,95510.0,0.10284521]
[1733160635695,0.209395,95513.0,95510.0,0.10284521]
[1733160635904,0.08673291,95514.0,95511.0,0.00250903]
[1733160636135,0.07682737,95523.0,95513.0,0.10284521]
[1733160636361,0.30908657,95522.0,95518.0,0.10284521]
[1733160636576,0.51846357,95522.0,95518.0,0.10284521]
[1733160636804,0.07682737,95523.0,95520.0,0.10284521]
[1733160637037,0.209369,95525.0,95497.0,0.0694]
[1733160637038,0.418738,95525.0,95522.0,0.10284521]
[1733160637258,0.209369,95525.0,95524.0,0.10284521]
[1733160638534,0.30908057,95525.0,95524.0,0.10533746]
[1733160638763,0.30908057,95525.0,95524.0,0.10284521]
[1733160639933,0.30908057,95525.0,95524.0,0.08111361]
[1733160640439,0.209428,95498.0,95497.0,0.0464]
[1733160640875,0.17463253,95498.0,95497.0,0.14942233]
[1733160641128,0.2514599,95498.0,95497.0,0.10302233]
[1733160641354,0.2743441,95498.0,95497.0,0.10302233]
[1733160641583,0.4243441,95498.0,95497.0,1.2e-07]
[1733160641837,0.6243441,95498.0,95497.0,1.2e-07]
[1733160642304,0.30917657,95481.0,95480.0,6.2e-07]
[1733160643559,0.65917657,95481.0,95480.0,6.2e-07]
[1733160644237,0.45917657,95481.0,95480.0,6.2e-07]
[1733160645110,0.0228842,95465.0,95426.0,0.0787]
[1733160645326,0.209544,95445.0,95426.0,0.0787]
[1733160645553,0.209544,95445.0,95444.0,99.22503949]
[1733160646029,0.209539,95448.0,95444.0,99.22503949]
[1733160646259,0.08984335,95533.0,95444.0,99.22503949]
[1733160646260,0.07682737,95468.0,95445.0,0.023]
[1733160646478,0.07682737,95475.0,95445.0,0.2001158]
[1733160646694,0.209475,95477.0,95445.0,0.2001158]
[1733160646695,0.07682737,95476.0,95451.0,0.023]
[1733160646909,0.209495,95468.0,95456.0,0.023]
[1733160647377,0.07682737,95476.0,95451.0,0.023]
[1733160647584,0.07682737,95476.0,95467.0,0.10284521]
[1733160647799,0.07682737,95477.0,95467.0,0.10284521]
[1733160648469,0.209481,95474.0,95468.0,0.10284521]
[1733160648701,0.20948,95475.0,95473.0,0.10284521]
[1733160649772,0.209474,95477.0,95473.0,0.10284521]
[1733160650036,0.12999938,95480.0,95475.0,0.10284521]
[1733160650253,0.12999938,95480.0,95461.0,0.1771158]
[1733160650254,0.20947,95479.0,95477.0,0.10284521]
[1733160651352,0.12999938,95480.0,95478.0,0.10284521]
[1733160651566,0.20947,95479.0,95478.0,0.01813788]
[1733160651777,0.20947,95479.0,95478.0,0.0129862]
[1733160652195,0.20947,95479.0,95478.0,0.0129462]
[1733160652645,0.20947,95479.0,95478.0,0.0129062]
[1733160652852,0.12999938,95480.0,95478.0,0.0129062]
[1733160653543,0.20947,95479.0,95478.0,0.0129062]
[1733160654229,0.20947,95479.0,95478.0,0.01253834]
[1733160654859,0.12999938,95480.0,95478.0,0.01253834]
[1733160655533,0.20947,95479.0,95478.0,0.01253834]
[1733160655747,0.07682737,95478.0,95473.0,0.001735]
[1733160656010,0.32381558,95474.0,95473.0,0.001735]
[1733160657406,0.209516,95458.0,95433.0,0.209569]
[1733160657634,0.209516,95458.0,95457.0,0.10343561]
[1733160658358,0.209516,95458.0,95457.0,0.05755694]
[1733160661713,0.209516,95458.0,95457.0,0.02478681]
[1733160662347,0.209506,95463.0,95426.0,0.1242]
[1733160662348,0.209544,95445.0,95426.0,0.1242]
[1733160662559,0.21013403,95445.0,95444.0,99.22503949]
[1733160662795,0.00059003,95445.0,95444.0,99.22503949]
[1733160663005,0.01596855,95464.0,95456.0,0.209519]
[1733160663226,0.01596855,95465.0,95457.0,0.10284521]
[1733160663448,0.0774,95513.0,95464.0,0.10284521]
[1733160663449,0.01596855,95472.0,95464.0,0.10284521]
[1733160663669,0.28624337,95504.0,95471.0,0.10284521]
[1733160663884,0.06746849,95480.0,95475.0,0.10284521]
[1733160664113,0.03750721,95478.0,95449.0,0.07599277]
[1733160664328,0.06746849,95480.0,95456.0,0.10284521]
[1733160664544,0.06746849,95480.0,95467.0,0.10284521]
[1733160665933,0.20947,95479.0,95467.0,0.10284521]
[1733160666151,0.209472,95478.0,95467.0,0.10284521]
[1733160666387,0.06746849,95480.0,95467.0,0.10284521]
[1733160666388,0.06746849,95480.0,95467.0,0.09284521]
[1733160666611,0.04762612,95480.0,95479.0,0.10284521]
[1733160667271,0.04762612,95480.0,95479.0,0.09284521]
[1733160668387,0.03750721,95475.0,95434.0,0.0489]
[1733160668604,0.07682737,95471.0,95445.0,0.10284521]
[1733160668850,0.209507,95462.0,95454.0,0.00017585]
[1733160669066,0.209522,95456.0,95455.0,0.10284521]
[1733160669789,0.11433458,95455.0,95454.0,0.00017585]
[1733160670207,0.209522,95456.0,95423.0,4e-05]
[1733160670208,0.209544,95445.0,95423.0,4e-05]
[1733160670420,0.28637137,95445.0,95423.0,4e-05]
[1733160670646,0.32387858,95445.0,95423.0,4e-05]
[1733160670856,0.57672379,95445.0,95423.0,4e-05]
[1733160671305,0.47387858,95445.0,95423.0,4e-05]
[1733160672811,0.209544,95445.0,95423.0,4e-05]
[1733160673975,0.209541,95447.0,95444.0,99.22677529]
[1733160674195,0.209541,95447.0,95445.0,0.10284521]
[1733160674426,0.419082,95447.0,95445.0,0.10284521]
[1733160677597,0.419082,95447.0,95445.0,0.10371311]
[1733160677820,0.209541,95447.0,95445.0,0.10371311]
[1733160679340,0.209534,95450.0,95445.0,0.10371311]
[1733160679547,0.209527,95453.0,95445.0,0.10371311]
[1733160679752,0.00017693,95456.0,95445.0,0.10371311]
[1733160679970,0.03750721,95446.0,95445.0,0.0008679]
[1733160680189,0.44467979,95446.0,95445.0,9e-07]
[1733160680850,0.47387858,95445.0,95444.0,99.09077801]
[1733160681072,0.57672379,95445.0,95444.0,99.09077801]
[1733160681559,5.97302379,95445.0,95444.0,98.64158002]
[1733160681805,6.02346915,95445.0,95444.0,98.64158002]
[1733160682033,7.28688602,95445.0,95444.0,98.64158002]
[1733160682265,4.76488602,95445.0,95444.0,98.64158002]
[1733160682484,4.70499309,95445.0,95444.0,98.64158002]
[1733160683110,2.52309309,95445.0,95444.0,98.64158002]
[1733160683325,2.6601099,95445.0,95444.0,98.64158002]
[1733160683534,2.64987502,95445.0,95444.0,98.64158002]
[1733160683752,2.49156644,95445.0,95444.0,98.64158002]
[1733160684202,1.51826644,95445.0,95444.0,98.64121216]
[1733160684425,1.49026644,95445.0,95444.0,98.64121216]
[1733160685301,1.49026644,95445.0,95444.0,98.61760155]
[1733160685999,1.84485821,95445.0,95444.0,98.61760155]
[1733160686209,2.38875821,95445.0,95444.0,98.61760155]
[1733160686430,2.38875821,95445.0,95444.0,98.61916344]
[1733160686431,2.42020191,95445.0,95444.0,98.61916344]
[1733160686869,2.58690191,95445.0,95444.0,98.61916344]
[1733160687083,2.76933674,95445.0,95444.0,98.61916344]
[1733160687290,2.55545821,95445.0,95444.0,98.61531499]
[1733160687508,2.77993783,95445.0,95444.0,98.61531499]
[1733160687732,2.77992357,95445.0,95444.0,98.61531499]
[1733160687965,2.68875821,95445.0,95444.0,98.61531499]
[1733160688454,2.77985943,95445.0,95444.0,98.61531499]
[1733160688662,1.99026644,95445.0,95444.0,98.61531499]
[1733160689082,2.01155821,95445.0,95444.0,98.61531499]
[1733160689295,1.83555821,95445.0,95444.0,98.61531499]
[1733160689516,1.94585821,95445.0,95444.0,98.61531499]
[1733160689748,6.84126644,95445.0,95444.0,98.61531499]
[1733160690235,6.64126644,95445.0,95444.0,98.61531499]
[1733160690499,3.74126644,95445.0,95444.0,98.61531499]
[1733160690996,2.94126644,95445.0,95444.0,98.61531499]
[1733160690998,0.42672379,95445.0,95444.0,98.59998133]
[1733160691222,5.47672379,95445.0,95444.0,98.59998133]
[1733160691458,6.44915884,95445.0,95444.0,98.56718679]
[1733160691669,6.44915884,95445.0,95444.0,98.35734873]
[1733160691968,6.99305884,95445.0,95444.0,98.35734873]
[1733160692205,7.16605884,95445.0,95444.0,98.14749268]
[1733160692458,7.23290962,95445.0,95444.0,97.89416374]
[1733160692693,7.23290962,95445.0,95444.0,97.68430269]
[1733160692929,7.20990962,95445.0,95444.0,97.68430269]
[1733160693171,7.23290962,95445.0,95444.0,97.68430269]
[1733160693424,7.23248363,95445.0,95444.0,97.57952769]
[1733160693691,7.37410556,95445.0,95444.0,97.57952769]
[1733160693949,7.37410556,95445.0,95444.0,97.47475269]
[1733160694197,7.37410556,95445.0,95444.0,97.12393403]
[1733160694451,7.37410556,95445.0,95444.0,96.70423192]
[1733160694683,2.50595042,95445.0,95444.0,96.68327692]
[1733160694980,2.32410556,95445.0,95444.0,96.59945692]
[1733160695450,7.37410556,95445.0,95444.0,96.34945692]
[1733160695715,7.38500355,95445.0,95444.0,96.32850192]
[1733160695979,2.3125685,95445.0,95444.0,96.24148766]
[1733160696238,1.7686685,95445.0,95444.0,95.35155788]
[1733160696482,1.7686685,95445.0,95444.0,95.26814095]
[1733160696743,1.87981288,95445.0,95444.0,95.20137117]
[1733160696981,2.42371288,95445.0,95444.0,94.97196567]
[1733160697214,3.33069637,95445.0,95444.0,94.4476168]
[1733160697453,3.51194433,95445.0,95444.0,94.04554884]
[1733160697690,2.42365443,95445.0,95444.0,93.98268384]
[1733160697956,2.37834647,95445.0,95444.0,93.70494774]
[1733160698191,2.28770872,95445.0,95444.0,93.59785952]
[1733160698433,7.33770872,95445.0,95444.0,93.38799147]
[1733160698686,7.33770872,95445.0,95444.0,92.92635537]
[1733160698920,7.33770872,95445.0,95444.0,92.6436249]
[1733160699174,7.32538679,95445.0,95444.0,92.5916466]
[1733160699418,6.97757958,95445.0,95444.0,92.5916466]
[1733160699653,7.32538679,95445.0,95444.0,92.5916466]
[1733160700638,7.08787958,95445.0,95444.0,92.5916466]
[1733160700877,6.78148679,95445.0,95444.0,92.55884767]
[1733160701156,6.58148679,95445.0,95444.0,92.30137149]
[1733160701390,6.58948679,95445.0,95444.0,92.30137149]
[1733160701858,6.38948679,95445.0,95444.0,92.30137149]
[1733160702085,6.73948679,95445.0,95444.0,92.30137149]
[1733160702361,6.74122259,95445.0,95444.0,92.30137149]
[1733160703073,6.54122259,95445.0,95444.0,92.30137149]
[1733160703324,6.53322259,95445.0,95444.0,92.30137149]
[1733160703557,6.38322259,95445.0,95444.0,92.30137149]
[1733160703803,4.18092259,95445.0,95444.0,92.30137149]
[1733160704036,1.16241538,95445.0,95444.0,92.30137149]
[1733160704287,1.19992259,95445.0,95444.0,92.30137149]
[1733160704554,1.16241538,95445.0,95444.0,92.30137149]
[1733160704803,0.99341538,95445.0,95444.0,92.30137149]
[1733160705041,0.98251739,95445.0,95444.0,92.30137149]
[1733160705506,1.0200246,95445.0,95444.0,92.30137149]
[1733160705987,0.39052639,95445.0,95444.0,92.30137149]
[1733160706220,0.31369902,95445.0,95444.0,92.30137149]
[1733160706703,0.31211702,95445.0,95444.0,92.30137149]
[1733160707183,0.20927181,95445.0,95444.0,92.30137149]
[1733160708710,0.35927181,95445.0,95444.0,92.30137149]
[1733160710390,0.5764516,95445.0,95444.0,92.30137149]
[1733160711071,0.5764516,95445.0,95444.0,92.26858252]
[1733160711327,5.6264516,95445.0,95444.0,92.26858252]
[1733160711585,5.8764516,95445.0,95444.0,92.26858252]
[1733160711804,5.905022,95445.0,95444.0,92.20954943]
[1733160712016,5.8764516,95445.0,95444.0,92.20954943]
[1733160712229,5.90682879,95445.0,95444.0,92.20954943]
[1733160712623,5.93539894,95445.0,95444.0,92.20954943]
[1733160713973,2.25239894,95445.0,95444.0,92.20954943]
[1733160714224,1.57682879,95445.0,95444.0,92.20918157]
[1733160714460,1.56482879,95445.0,95444.0,92.20918157]
[1733160714919,0.9113816,95445.0,95444.0,92.20918157]
[1733160715232,0.4253816,95445.0,95444.0,92.20918157]
[1733160715511,0.4253816,95445.0,95444.0,92.33328157]
[1733160715512,0.31104702,95445.0,95444.0,92.33328157]
[1733160716004,0.38787439,95445.0,95444.0,92.33328157]
[1733160716235,6.0253816,95445.0,95444.0,92.33328157]
[1733160716471,5.57490949,95445.0,95444.0,92.20918157]
[1733160716710,1.61690949,95445.0,95444.0,92.20918157]
[1733160716952,1.06690949,95445.0,95444.0,92.20918157]
[1733160717197,0.5753816,95445.0,95444.0,92.20918157]
[1733160718699,0.8253816,95445.0,95444.0,92.20918157]
[1733160719647,0.9356816,95445.0,95444.0,92.20918157]
[1733160719891,0.5753816,95445.0,95444.0,92.20918157]
[1733160720134,0.46104702,95445.0,95444.0,92.20918157]
[1733160720815,0.35820181,95445.0,95444.0,92.25558157]
[1733160721049,0.20820181,95445.0,95444.0,92.25558157]
[1733160722235,0.35820181,95445.0,95444.0,92.25558157]
[1733160724439,0.5753816,95445.0,95444.0,92.10440657]
[1733160724681,0.90689215,95445.0,95444.0,92.06249657]
[1733160724927,6.16378778,95445.0,95444.0,92.04154157]
[1733160725165,6.06719215,95445.0,95444.0,92.04154157]
[1733160725663,6.06719215,95445.0,95444.0,91.76882951]
[1733160725930,6.30103938,95445.0,95444.0,91.68500951]
[1733160726208,6.06719215,95445.0,95444.0,91.47516445]
[1733160726481,5.74389215,95445.0,95444.0,91.47516445]
[1733160726936,5.74390706,95445.0,95444.0,91.47516445]
[1733160727170,5.74390706,95445.0,95444.0,91.24435839]
[1733160727171,5.22290706,95445.0,95444.0,91.24435839]
[1733160727405,5.08794425,95445.0,95444.0,90.99260833]
[1733160727646,5.06487601,95445.0,95444.0,90.74081529]
[1733160727886,5.8149128,95445.0,95444.0,90.02735718]
[1733160728118,2.43886882,95445.0,95444.0,89.46332604]
[1733160728373,2.1649128,95445.0,95444.0,89.253437]
[1733160728854,2.47311333,95445.0,95444.0,88.49983894]
[1733160729113,1.9729128,95445.0,95444.0,87.87018681]
[1733160729591,1.98381079,95445.0,95444.0,87.66029777]
[1733160729826,2.23381079,95445.0,95444.0,86.92595761]
[1733160730057,7.47581079,95445.0,95444.0,86.14770603]
[1733160730305,7.4649128,95445.0,95444.0,85.93782798]
[1733160730573,7.73921444,95445.0,95444.0,85.72795694]
[1733160730800,7.45310706,95445.0,95444.0,84.88687134]
[1733160731024,2.40877601,95445.0,95444.0,84.63510329]
[1733160731276,7.45877601,95445.0,95444.0,84.42521925]
[1733160731529,2.41815166,95445.0,95444.0,84.21533421]
[1733160731790,2.22615166,95445.0,95444.0,83.70930106]
[1733160732038,2.22615166,95445.0,95444.0,83.49941702]
[1733160732266,7.52033486,95445.0,95444.0,83.07965693]
[1733160732527,2.41124493,95445.0,95444.0,82.45001779]
[1733160732752,2.41124493,95445.0,95444.0,81.67386299]
[1733160732753,1.64793839,95445.0,95444.0,81.67386299]
[1733160733035,1.65484512,95445.0,95444.0,81.14418017]
[1733160733264,1.65484512,95445.0,95444.0,80.30478195]
[1733160733489,1.96316639,95445.0,95444.0,79.88505085]
[1733160733764,1.65484512,95445.0,95444.0,79.44441274]
[1733160734001,1.66574311,95445.0,95444.0,79.42345774]
[1733160734258,1.97397127,95445.0,95444.0,78.53178323]
[1733160734522,1.66574311,95445.0,95444.0,78.11205513]
[1733160734755,1.61699389,95445.0,95444.0,77.12436063]
[1733160735021,1.61699389,95445.0,95444.0,73.96353057]
[1733160735248,1.61699389,95445.0,95444.0,71.92764553]
[1733160735503,1.61699389,95445.0,95444.0,71.49792701]
[1733160735730,1.61699389,95445.0,95444.0,71.00533307]
[1733160735973,1.61699389,95445.0,95444.0,70.14497486]
[1733160736207,1.61699389,95445.0,95444.0,68.56619951]
[1733160736471,1.61780529,95445.0,95444.0,67.39662049]
[1733160736740,1.61780529,95445.0,95444.0,67.16578045]
[1733160736975,1.61780529,95445.0,95444.0,63.05768033]
[1733160737209,3.34880017,95445.0,95444.0,62.84783927]
[1733160737444,3.289327,95445.0,95444.0,62.84783927]
[1733160737682,4.32052465,95445.0,95444.0,62.78497427]
[1733160737912,4.32052465,95445.0,95444.0,62.74306427]
[1733160738163,4.04697208,95445.0,95444.0,62.74306427]
[1733160738632,4.47039864,95445.0,95444.0,62.74306427]
[1733160738894,4.19697208,95445.0,95444.0,62.65924427]
[1733160739123,3.84683421,95445.0,95444.0,62.63828927]
[1733160739820,3.84683421,95445.0,95444.0,62.57542427]
[1733160740037,3.84683421,95445.0,95444.0,62.53351427]
[1733160740295,3.99683421,95445.0,95444.0,62.53351427]
[1733160740537,2.81544929,95445.0,95444.0,62.53351427]
[1733160740778,2.68972753,95445.0,95444.0,62.42873927]
[1733160741002,2.17290372,95445.0,95444.0,62.42873927]
[1733160741250,2.14444208,95445.0,95444.0,62.42873927]
[1733160741494,2.38194929,95445.0,95444.0,62.42873927]
[1733160741744,2.57394929,95445.0,95444.0,62.42873927]
[1733160742022,2.26364929,95445.0,95444.0,62.32396427]
[1733160742278,0.80371863,95445.0,95444.0,62.32396427]
[1733160742538,0.50820181,95445.0,95444.0,62.45076427]
[1733160742770,0.2112758,95447.0,95444.0,62.45076427]
[1733160743004,0.2102758,95447.0,95444.0,62.45076427]
[1733160743297,0.24705121,95445.0,95444.0,62.32396427]
[1733160744000,0.24705121,95445.0,95444.0,62.37356427]
[1733160744719,0.209544,95445.0,95444.0,62.37356427]
[1733160744949,0.209544,95445.0,95444.0,62.45346427]
[1733160745396,0.081444,95445.0,95444.0,62.45346427]
[1733160745651,0.2102758,95447.0,95444.0,62.45346427]
[1733160745872,0.209544,95445.0,95444.0,62.45346427]
[1733160746568,0.209544,95445.0,95444.0,62.40386427]
[1733160746788,0.24705121,95445.0,95444.0,62.40386427]
[1733160748334,0.209544,95445.0,95444.0,62.40386427]
[1733160748558,0.24705121,95445.0,95444.0,62.40386427]
[1733160749011,0.209544,95445.0,95444.0,62.40386427]
[1733160749951,0.209544,95445.0,95444.0,62.37386427]
[1733160750391,0.2112728,95445.0,95444.0,62.37386427]
[1733160753541,0.2112728,95445.0,95444.0,62.47670948]
[1733160753762,0.0017358,95447.0,95444.0,62.52430948]
[1733160753979,0.209542,95446.0,95445.0,0.10284521]
[1733160754200,0.209542,95446.0,95445.0,0.22601784]
[1733160755767,0.20894502,95446.0,95445.0,0.22601784]
[1733160756653,0.2112758,95447.0,95446.0,0.12317263]
[1733160756871,0.2112758,95447.0,95446.0,0.22601784]
[1733160760797,0.00017693,95456.0,95446.0,0.22601784]
[1733160760798,0.209525,95454.0,95453.0,0.12317263]
[1733160761022,0.209525,95454.0,95453.0,0.22601784]
[1733160761262,0.209525,95454.0,95453.0,0.10284521]
[1733160761844,0.209525,95454.0,95453.0,0.22601784]
[1733160762047,0.00017693,95456.0,95455.0,0.12317263]
[1733160762288,0.00017693,95456.0,95455.0,0.22601784]
[1733160762704,0.00017693,95456.0,95455.0,0.38851063]
[1733160764707,0.00017693,95456.0,95455.0,0.38097048]
[1733160766244,0.00017693,95456.0,95455.0,0.10284521]
[1733160766466,0.00017693,95456.0,95444.0,62.29396427]
[1733160766467,0.209544,95445.0,95444.0,62.29396427]
[1733160766684,0.209544,95445.0,95444.0,62.39680948]
[1733160766904,0.209544,95445.0,95444.0,62.51244196]
[1733160767123,0.209534,95450.0,95444.0,62.51244196]
[1733160767124,0.209534,95450.0,95449.0,0.11563248]
[1733160767355,0.00017693,95456.0,95455.0,0.11563248]
[1733160767579,0.209496,95468.0,95467.0,0.11563248]
[1733160767786,6.802e-05,95468.0,95467.0,0.21847769]
[1733160768015,0.209484,95473.0,95467.0,0.21847769]
[1733160768215,0.209484,95473.0,95468.0,0.10284521]
[1733160768429,0.209488,95471.0,95468.0,0.10284521]
[1733160768821,0.418976,95471.0,95468.0,0.10284521]
[1733160769042,0.209488,95471.0,95470.0,0.11563248]
[1733160769271,0.15,95494.0,95470.0,0.10284521]
[1733160769494,0.209485,95472.0,95471.0,0.10284521]
[1733160769744,0.20949,95470.0,95467.0,6.802e-05]
[1733160769978,0.20949,95470.0,95468.0,0.10284521]
[1733160772021,0.209494,95468.0,95467.0,6.802e-05]
[1733160772237,0.703082,95468.0,95467.0,6.802e-05]
[1733160772474,1.58830021,95468.0,95467.0,6.802e-05]
[1733160772714,1.96362021,95468.0,95467.0,6.802e-05]
[1733160773173,1.20251021,95468.0,95467.0,6.802e-05]
[1733160773399,0.57487421,95468.0,95467.0,6.802e-05]
[1733160773621,0.537367,95468.0,95467.0,6.802e-05]
[1733160773832,0.460346,95468.0,95467.0,6.802e-05]
[1733160774733,0.310346,95468.0,95467.0,0.10291323]
[1733160774970,0.209494,95468.0,95467.0,0.10291323]
[1733160777230,0.209494,95468.0,95467.0,6.802e-05]
[1733160777470,0.673952,95468.0,95467.0,6.802e-05]
[1733160777705,1.586198,95468.0,95467.0,2e-08]
[1733160777957,0.409294,95468.0,95467.0,2e-08]
[1733160778205,0.35952,95456.0,95455.0,2.2e-07]
[1733160778421,0.44112,95456.0,95455.0,1.5e-07]
[1733160778640,0.47862721,95456.0,95455.0,1.5e-07]
[1733160779318,0.51019569,95456.0,95455.0,1.5e-07]
[1733160779989,0.74290842,95456.0,95455.0,1.5e-07]
[1733160780209,0.54391152,95445.0,95444.0,62.29396427]
[1733160780437,1.02163242,95445.0,95444.0,62.29396427]
[1733160780705,10.3812049,95445.0,95444.0,61.68487927]
[1733160780959,9.79108147,95445.0,95444.0,60.78217221]
[1733160781187,9.79539455,95445.0,95444.0,60.36248809]
[1733160781421,9.79539455,95445.0,95444.0,60.02454604]
[1733160781652,9.40334255,95445.0,95444.0,59.77279397]
[1733160781885,9.40334255,95445.0,95444.0,59.50008691]
[1733160782130,9.40386806,95445.0,95444.0,59.50008691]
[1733160782355,9.40386806,95445.0,95444.0,59.29024485]
[1733160782356,9.4948024,95445.0,95444.0,59.29024485]
[1733160782571,9.40386806,95445.0,95444.0,59.08040279]
[1733160782786,9.40386806,95445.0,95444.0,58.76578574]
[1733160783003,9.40386806,95445.0,95444.0,58.55594367]
[1733160783218,9.40386806,95445.0,95444.0,58.34610162]
[1733160783439,4.58140044,95445.0,95444.0,58.12626712]
[1733160783656,4.35386806,95445.0,95444.0,57.91642506]
[1733160783875,4.35386806,95445.0,95444.0,57.39196994]
[1733160784103,4.35386806,95445.0,95444.0,57.18212788]
[1733160784324,4.35386806,95445.0,95444.0,56.76244776]
[1733160784600,4.35386806,95445.0,95444.0,56.75245133]
[1733160784825,4.35386806,95445.0,95444.0,56.47974827]
[1733160785041,4.36476605,95445.0,95444.0,56.01815815]
[1733160785258,4.36476605,95445.0,95444.0,55.80831609]
[1733160785490,4.36476605,95445.0,95444.0,55.37863954]
[1733160785714,4.23998818,95445.0,95444.0,49.75027226]
[1733160785953,4.23998818,95445.0,95444.0,44.06543526]
[1733160786186,4.23998818,95445.0,95444.0,42.55957526]
[1733160786395,4.23998818,95445.0,95444.0,41.65102326]
[1733160786617,4.23998818,95445.0,95444.0,41.00220626]
[1733160786840,4.23998818,95445.0,95444.0,40.53758715]
[1733160787085,4.23998818,95445.0,95444.0,40.5367446]
[1733160787309,4.23650919,95445.0,95444.0,40.11297561]
[1733160787534,4.23650919,95445.0,95444.0,39.60011061]
[1733160787756,7.78219799,95445.0,95444.0,39.34993161]
[1733160788010,7.30420199,95445.0,95444.0,39.34993161]
[1733160788506,7.19126599,95445.0,95444.0,39.34993161]
[1733160788734,6.70377399,95445.0,95444.0,39.32897661]
[1733160788963,6.70377399,95445.0,95444.0,39.07036357]
[1733160788964,6.73211804,95445.0,95444.0,39.07036357]
[1733160789197,4.28699562,95445.0,95444.0,38.48064036]
[1733160789427,4.23823799,95445.0,95444.0,37.47625336]
[1733160789691,7.37867199,95445.0,95444.0,37.24879536]
[1733160789905,6.79067199,95445.0,95444.0,37.18593036]
[1733160790115,7.01786755,95445.0,95444.0,37.16476595]
[1733160790328,6.64691499,95445.0,95444.0,37.16476595]
[1733160790546,7.19691499,95445.0,95444.0,37.16476595]
[1733160790762,7.19691499,95445.0,95444.0,37.05999095]
[1733160791192,7.19691499,95445.0,95444.0,37.05978142]
[1733160791415,7.19691499,95445.0,95444.0,37.06116585]
[1733160791657,7.19691499,95445.0,95444.0,37.03988581]
[1733160791892,7.19691499,95445.0,95444.0,36.95606581]
[1733160792123,11.0373767,95445.0,95444.0,36.95606581]
[1733160792383,11.55569869,95445.0,95444.0,36.95585577]
[1733160792611,11.29260569,95445.0,95444.0,36.95585577]
[1733160792830,11.29260569,95445.0,95444.0,36.85108077]
[1733160793285,11.29260569,95445.0,95444.0,36.85087139]
[1733160793419,11.31469269,95445.0,95444.0,36.85087139]
[1733160793649,11.07718548,95445.0,95444.0,36.76705139]
[1733160793851,10.73513148,95445.0,95444.0,36.74609639]
[1733160794060,10.94123173,95445.0,95444.0,36.74609639]
[1733160794258,3.44789073,95445.0,95444.0,36.74609639]